{"text_format":"1","workbook":"xlsx","n_sheets":1,"sheets":["ورقة1"],"not_rendered":{"charts":0,"images":0,"macros":1,"external_links":0,"defined_names":20,"comments":0,"pivot_tables":0},"unopened":[],"bounds":{"document_bytes":16777216,"sheet_cells":100000,"rows_first":2000,"rows_last":500,"rows_between":2000,"halvings":0,"cell_chars":16384,"cell_head_chars":4096},"cells_cut":0,"cells_raw":0,"read":"whole","date_system":"1900"}

{"sheet":"ورقة1","index":0,"n_rows":93,"n_cols":32,"rows_kept":93,"cut":false,"hidden":false,"merged":[]}
[]
[null,null,null,null,null,null,null,null,null,null,null,null,null,null,null,null,null,null,null,null,null,null,null,"Remove Used Items from Drop Down List Using Helper Columns"]
[null,null,null,null,null,null,null,null,null,null,null,null,null,null,null,null,null,null,null,null,null,null,null,1,"N°",null,2,"N°",null,3,"N°"]
[null,null,null,null,null,null,null,null,null,null,null,null,null,null,null,null,null,null,null,null,null,null,null,null,"ROW",null,null,"ROW",null,null,"ROW"]
[null,null,null,null,null,null,null,null,null,null,null,null,null,null,null,null,null,null,null,null,null,null,null,"إختر_ الإجابة",{"$f":"IF(COUNTIF($C$7:$G$7,X5)>=1,\"\",ROW())","v":5},{"$f":"IF(ROW(X5)-ROW(X$5)+1>COUNT(Y$5:Y$15),\"\",INDEX(X:X,SMALL(Y$5:Y$15,1+ROW(X5)-ROW(X$5))))","v":"إختر_ الإجابة"},"إختر_ الإجابة",{"$f":"IF(COUNTIF($C$8:$G$8,AA5)>=1,\"\",ROW())","v":5},{"$f":"IF(ROW(AA5)-ROW(AA$5)+1>COUNT(AB$5:AB$15),\"\",INDEX(AA:AA,SMALL(AB$5:AB$15,1+ROW(AA5)-ROW(AA$5))))","v":"إختر_ الإجابة"},"إختر_ الإجابة",{"$f":"IF(COUNTIF($C$9:$G$9,AD5)>=1,\"\",ROW())","v":5},{"$f":"IF(ROW(AD5)-ROW(AD$5)+1>COUNT(AE$5:AE$15),\"\",INDEX(AD:AD,SMALL(AE$5:AE$15,1+ROW(AD5)-ROW(AD$5))))","v":"إختر_ الإجابة"}]
[null,null,null,null,null,null,null,null,null,null,null,null,null,null,null,null,null,null,null,null,null,null,null,"الاختيار الأول",{"$f":"IF(COUNTIF($C$7:$G$7,X6)>=1,\"\",ROW())","v":""},"الاختيار الثالث","الاختيار الأول",{"$f":"IF(COUNTIF($C$8:$G$8,AA6)>=1,\"\",ROW())","v":6},"الاختيار الأول","الاختيار الأول",{"$f":"IF(COUNTIF($C$9:$G$9,AD6)>=1,\"\",ROW())","v":6},"الاختيار الأول"]
[null,"إجابة السؤال ( 1 )","الاختيار الأول","الاختيار الثاني",null,null,null,null,null,null,null,null,null,null,null,null,null,null,null,null,null,null,null,"الاختيار الثاني","","الاختيار الرابع","الاختيار الثاني",{"$f":"IF(COUNTIF($C$8:$G$8,AA7)>=1,\"\",ROW())","v":7},"الاختيار الثاني","الاختيار الثاني",7,"الاختيار الثاني"]
[null,"إجابة السؤال ( 2 )",null,null,null,null,null,null,null,null,null,null,null,null,null,null,null,null,null,null,null,null,null,"الاختيار الثالث",8,"الاختيار الخامس","الاختيار الثالث",8,"الاختيار الثالث","الاختيار الثالث",8,"الاختيار الثالث"]
[null,"إجابة السؤال ( 3 )",null,null,null,null,null,null,null,null,null,null,null,null,null,null,null,null,null,null,null,null,null,"الاختيار الرابع",9,"_","الاختيار الرابع",9,"الاختيار الرابع","الاختيار الرابع",9,"الاختيار الرابع"]
[null,"إجابة السؤال ( 4 )",null,null,null,null,null,null,null,null,null,null,null,null,null,null,null,null,null,null,null,null,null,"الاختيار الخامس",10,"","الاختيار الخامس",10,"الاختيار الخامس","الاختيار الخامس",10,"الاختيار الخامس"]
[null,"إجابة السؤال ( 5 )",null,null,null,null,null,null,null,null,null,null,null,null,null,null,null,null,null,null,null,null,null,"_",11,"","_",11,"_","_",11,"_"]
[null,"إجابة السؤال ( 6 )",null,null,null,null,null,null,null,null,null,null,null,null,null,null,null,null,null,null,null,null,null,null,null,"",null,null,"",null,null,""]
[null,"إجابة السؤال ( 7 )",null,null,null,null,null,null,null,null,null,null,null,null,null,null,null,null,null,null,null,null,null,null,null,"",null,null,"",null,null,""]
[null,"إجابة السؤال ( 8 )",null,null,null,null,null,null,null,null,null,null,null,null,null,null,null,null,null,null,null,null,null,null,null,"",null,null,"",null,null,""]
[null,"إجابة السؤال ( 9 )",null,null,null,null,null,null,null,null,null,null,null,null,null,null,null,null,null,null,null,null,null,null,null,"",null,null,"",null,null,""]
[null,"إجابة السؤال ( 10 )",null,null,null,null,null,null,null,null,null,null,null,null,null,null,null,null,null,null,null,null,null,4,"N°",null,5,"N°",null,6,"N°"]
[null,"إجابة السؤال ( 11 )",null,null,null,null,null,null,null,null,null,null,null,null,null,null,null,null,null,null,null,null,null,null,"ROW",null,null,"ROW",null,null,"ROW"]
[null,"إجابة السؤال ( 12 )",null,null,null,null,null,null,null,null,null,null,null,null,null,null,null,null,null,null,null,null,null,"إختر_ الإجابة",{"$f":"IF(COUNTIF($C$10:$G$10,X18)>=1,\"\",ROW())","v":18},{"$f":"IF(ROW(X18)-ROW(X$18)+1>COUNT(Y$18:Y$28),\"\",INDEX(X:X,SMALL(Y$18:Y$28,1+ROW(X18)-ROW(X$18))))","v":"إختر_ الإجابة"},"إختر_ الإجابة",{"$f":"IF(COUNTIF($C$11:$G$11,AA18)>=1,\"\",ROW())","v":18},{"$f":"IF(ROW(AA18)-ROW(AA$18)+1>COUNT(AB$18:AB$28),\"\",INDEX(AA:AA,SMALL(AB$18:AB$28,1+ROW(AA18)-ROW(AA$18))))","v":"إختر_ الإجابة"},"إختر_ الإجابة",{"$f":"IF(COUNTIF($C$12:$G$12,AD18)>=1,\"\",ROW())","v":18},{"$f":"IF(ROW(AD18)-ROW(AD$18)+1>COUNT(AE$18:AE$28),\"\",INDEX(AD:AD,SMALL(AE$18:AE$28,1+ROW(AD18)-ROW(AD$18))))","v":"إختر_ الإجابة"}]
[null,"إجابة السؤال ( 10 )",null,null,null,null,null,null,null,null,null,null,null,null,null,null,null,null,null,null,null,null,null,"الاختيار الأول",{"$f":"IF(COUNTIF($C$10:$G$10,X19)>=1,\"\",ROW())","v":19},{"$f":"IF(ROW(X19)-ROW(X$18)+1>COUNT(Y$18:Y$28),\"\",INDEX(X:X,SMALL(Y$18:Y$28,1+ROW(X19)-ROW(X$18))))","v":"الاختيار الأول"},"الاختيار الأول",{"$f":"IF(COUNTIF($C$11:$G$11,AA19)>=1,\"\",ROW())","v":19},{"$f":"IF(ROW(AA19)-ROW(AA$18)+1>COUNT(AB$18:AB$28),\"\",INDEX(AA:AA,SMALL(AB$18:AB$28,1+ROW(AA19)-ROW(AA$18))))","v":"الاختيار الأول"},"الاختيار الأول",{"$f":"IF(COUNTIF($C$12:$G$12,AD19)>=1,\"\",ROW())","v":19},{"$f":"IF(ROW(AD19)-ROW(AD$18)+1>COUNT(AE$18:AE$28),\"\",INDEX(AD:AD,SMALL(AE$18:AE$28,1+ROW(AD19)-ROW(AD$18))))","v":"الاختيار الأول"}]
[null,"إجابة السؤال ( 14 )",null,null,null,null,null,null,null,null,null,null,null,null,null,null,null,null,null,null,null,null,null,"الاختيار الثاني",20,"الاختيار الثاني","الاختيار الثاني",20,"الاختيار الثاني","الاختيار الثاني",20,"الاختيار الثاني"]
[null,"إجابة السؤال ( 15 )",null,null,null,null,null,null,null,null,null,null,null,null,null,null,null,null,null,null,null,null,null,"الاختيار الثالث",21,"الاختيار الثالث","الاختيار الثالث",21,"الاختيار الثالث","الاختيار الثالث",21,"الاختيار الثالث"]
[null,"إجابة السؤال ( 16 )",null,null,null,null,null,null,null,null,null,null,null,null,null,null,null,null,null,null,null,null,null,"الاختيار الرابع",22,"الاختيار الرابع","الاختيار الرابع",22,"الاختيار الرابع","الاختيار الرابع",22,"الاختيار الرابع"]
[null,"إجابة السؤال ( 17 )",null,null,null,null,null,null,null,null,null,null,null,null,null,null,null,null,null,null,null,null,null,"الاختيار الخامس",23,"الاختيار الخامس","الاختيار الخامس",23,"الاختيار الخامس","الاختيار الخامس",23,"الاختيار الخامس"]
[null,"إجابة السؤال ( 18 )",null,null,null,null,null,null,null,null,null,null,null,null,null,null,null,null,null,null,null,null,null,"_",24,"_","_",24,"_","_",24,"_"]
[null,"إجابة السؤال ( 19 )",null,null,null,null,null,null,null,null,null,null,null,null,null,null,null,null,null,null,null,null,null,null,null,"",null,null,"",null,null,""]
[null,"إجابة السؤال ( 20 )",null,null,null,null,null,null,null,null,null,null,null,null,null,null,null,null,null,null,null,null,null,null,null,"",null,null,"",null,null,""]
[null,null,null,null,null,null,null,null,null,null,null,null,null,null,null,null,null,null,null,null,null,null,null,null,null,"",null,null,"",null,null,""]
[null,null,null,null,null,null,null,null,null,null,null,null,null,null,null,null,null,null,null,null,null,null,null,null,null,"",null,null,"",null,null,""]
[null,null,null,null,null,null,null,null,null,null,null,null,null,null,null,null,null,null,null,null,null,null,null,7,"N°",null,8,"N°",null,9,"N°"]
[null,null,null,null,null,null,null,null,null,null,null,null,null,null,null,null,null,null,null,null,null,null,null,null,"ROW",null,null,"ROW",null,null,"ROW"]
[null,null,null,null,null,null,null,null,null,null,null,null,null,null,null,null,null,null,null,null,null,null,null,"إختر_ الإجابة",{"$f":"IF(COUNTIF($C$13:$G$13,X31)>=1,\"\",ROW())","v":31},{"$f":"IF(ROW(X31)-ROW(X$31)+1>COUNT(Y$31:Y$41),\"\",INDEX(X:X,SMALL(Y$31:Y$41,1+ROW(X31)-ROW(X$31))))","v":"إختر_ الإجابة"},"إختر_ الإجابة",{"$f":"IF(COUNTIF($C$14:$G$14,AA31)>=1,\"\",ROW())","v":31},{"$f":"IF(ROW(AA31)-ROW(AA$31)+1>COUNT(AB$31:AB$41),\"\",INDEX(AA:AA,SMALL(AB$31:AB$41,1+ROW(AA31)-ROW(AA$31))))","v":"إختر_ الإجابة"},"إختر_ الإجابة",{"$f":"IF(COUNTIF($C$15:$G$15,AD31)>=1,\"\",ROW())","v":31},{"$f":"IF(ROW(AD31)-ROW(AD$31)+1>COUNT(AE$31:AE$41),\"\",INDEX(AD:AD,SMALL(AE$31:AE$41,1+ROW(AD31)-ROW(AD$31))))","v":"إختر_ الإجابة"}]
[null,null,null,null,null,null,null,null,null,null,null,null,null,null,null,null,null,null,null,null,null,null,null,"الاختيار الأول",{"$f":"IF(COUNTIF($C$13:$G$13,X32)>=1,\"\",ROW())","v":32},{"$f":"IF(ROW(X32)-ROW(X$31)+1>COUNT(Y$31:Y$41),\"\",INDEX(X:X,SMALL(Y$31:Y$41,1+ROW(X32)-ROW(X$31))))","v":"الاختيار الأول"},"الاختيار الأول",{"$f":"IF(COUNTIF($C$14:$G$14,AA32)>=1,\"\",ROW())","v":32},{"$f":"IF(ROW(AA32)-ROW(AA$31)+1>COUNT(AB$31:AB$41),\"\",INDEX(AA:AA,SMALL(AB$31:AB$41,1+ROW(AA32)-ROW(AA$31))))","v":"الاختيار الأول"},"الاختيار الأول",{"$f":"IF(COUNTIF($C$15:$G$15,AD32)>=1,\"\",ROW())","v":32},{"$f":"IF(ROW(AD32)-ROW(AD$31)+1>COUNT(AE$31:AE$41),\"\",INDEX(AD:AD,SMALL(AE$31:AE$41,1+ROW(AD32)-ROW(AD$31))))","v":"الاختيار الأول"}]
[null,null,null,null,null,null,null,null,null,null,null,null,null,null,null,null,null,null,null,null,null,null,null,"الاختيار الثاني",33,"الاختيار الثاني","الاختيار الثاني",33,"الاختيار الثاني","الاختيار الثاني",33,"الاختيار الثاني"]
[null,null,null,null,null,null,null,null,null,null,null,null,null,null,null,null,null,null,null,null,null,null,null,"الاختيار الثالث",34,"الاختيار الثالث","الاختيار الثالث",34,"الاختيار الثالث","الاختيار الثالث",34,"الاختيار الثالث"]
[null,null,null,null,null,null,null,null,null,null,null,null,null,null,null,null,null,null,null,null,null,null,null,"الاختيار الرابع",35,"الاختيار الرابع","الاختيار الرابع",35,"الاختيار الرابع","الاختيار الرابع",35,"الاختيار الرابع"]
[null,null,null,null,null,null,null,null,null,null,null,null,null,null,null,null,null,null,null,null,null,null,null,"الاختيار الخامس",36,"الاختيار الخامس","الاختيار الخامس",36,"الاختيار الخامس","الاختيار الخامس",36,"الاختيار الخامس"]
[null,null,null,null,null,null,null,null,null,null,null,null,null,null,null,null,null,null,null,null,null,null,null,"_",37,"_","_",37,"_","_",37,"_"]
[null,null,null,null,null,null,null,null,null,null,null,null,null,null,null,null,null,null,null,null,null,null,null,null,null,"",null,null,"",null,null,""]
[null,null,null,null,null,null,null,null,null,null,null,null,null,null,null,null,null,null,null,null,null,null,null,null,null,"",null,null,"",null,null,""]
[null,null,null,null,null,null,null,null,null,null,null,null,null,null,null,null,null,null,null,null,null,null,null,null,null,"",null,null,"",null,null,""]
[null,null,null,null,null,null,null,null,null,null,null,null,null,null,null,null,null,null,null,null,null,null,null,null,null,"",null,null,"",null,null,""]
[null,null,null,null,null,null,null,null,null,null,null,null,null,null,null,null,null,null,null,null,null,null,null,10,"N°",null,11,"N°",null,12,"N°"]
[null,null,null,null,null,null,null,null,null,null,null,null,null,null,null,null,null,null,null,null,null,null,null,null,"ROW",null,null,"ROW",null,null,"ROW"]
[null,null,null,null,null,null,null,null,null,null,null,null,null,null,null,null,null,null,null,null,null,null,null,"إختر_ الإجابة",{"$f":"IF(COUNTIF($C$16:$G$16,X44)>=1,\"\",ROW())","v":44},{"$f":"IF(ROW(X44)-ROW(X$44)+1>COUNT(Y$44:Y$54),\"\",INDEX(X:X,SMALL(Y$44:Y$54,1+ROW(X44)-ROW(X$44))))","v":"إختر_ الإجابة"},"إختر_ الإجابة",{"$f":"IF(COUNTIF($C$17:$G$17,AA44)>=1,\"\",ROW())","v":44},{"$f":"IF(ROW(AA44)-ROW(AA$44)+1>COUNT(AB$44:AB$54),\"\",INDEX(AA:AA,SMALL(AB$44:AB$54,1+ROW(AA44)-ROW(AA$44))))","v":"إختر_ الإجابة"},"إختر_ الإجابة",{"$f":"IF(COUNTIF($C$18:$G$18,AD44)>=1,\"\",ROW())","v":44},{"$f":"IF(ROW(AD44)-ROW(AD$44)+1>COUNT(AE$44:AE$54),\"\",INDEX(AD:AD,SMALL(AE$44:AE$54,1+ROW(AD44)-ROW(AD$44))))","v":"إختر_ الإجابة"}]
[null,null,null,null,null,null,null,null,null,null,null,null,null,null,null,null,null,null,null,null,null,null,null,"الاختيار الأول",{"$f":"IF(COUNTIF($C$16:$G$16,X45)>=1,\"\",ROW())","v":45},{"$f":"IF(ROW(X45)-ROW(X$44)+1>COUNT(Y$44:Y$54),\"\",INDEX(X:X,SMALL(Y$44:Y$54,1+ROW(X45)-ROW(X$44))))","v":"الاختيار الأول"},"الاختيار الأول",{"$f":"IF(COUNTIF($C$17:$G$17,AA45)>=1,\"\",ROW())","v":45},{"$f":"IF(ROW(AA45)-ROW(AA$44)+1>COUNT(AB$44:AB$54),\"\",INDEX(AA:AA,SMALL(AB$44:AB$54,1+ROW(AA45)-ROW(AA$44))))","v":"الاختيار الأول"},"الاختيار الأول",{"$f":"IF(COUNTIF($C$18:$G$18,AD45)>=1,\"\",ROW())","v":45},{"$f":"IF(ROW(AD45)-ROW(AD$44)+1>COUNT(AE$44:AE$54),\"\",INDEX(AD:AD,SMALL(AE$44:AE$54,1+ROW(AD45)-ROW(AD$44))))","v":"الاختيار الأول"}]
[null,null,null,null,null,null,null,null,null,null,null,null,null,null,null,null,null,null,null,null,null,null,null,"الاختيار الثاني",46,"الاختيار الثاني","الاختيار الثاني",46,"الاختيار الثاني","الاختيار الثاني",46,"الاختيار الثاني"]
[null,null,null,null,null,null,null,null,null,null,null,null,null,null,null,null,null,null,null,null,null,null,null,"الاختيار الثالث",47,"الاختيار الثالث","الاختيار الثالث",47,"الاختيار الثالث","الاختيار الثالث",47,"الاختيار الثالث"]
[null,null,null,null,null,null,null,null,null,null,null,null,null,null,null,null,null,null,null,null,null,null,null,"الاختيار الرابع",48,"الاختيار الرابع","الاختيار الرابع",48,"الاختيار الرابع","الاختيار الرابع",48,"الاختيار الرابع"]
[null,null,null,null,null,null,null,null,null,null,null,null,null,null,null,null,null,null,null,null,null,null,null,"الاختيار الخامس",49,"الاختيار الخامس","الاختيار الخامس",49,"الاختيار الخامس","الاختيار الخامس",49,"الاختيار الخامس"]
[null,null,null,null,null,null,null,null,null,null,null,null,null,null,null,null,null,null,null,null,null,null,null,"_",50,"_","_",50,"_","_",50,"_"]
[null,null,null,null,null,null,null,null,null,null,null,null,null,null,null,null,null,null,null,null,null,null,null,null,null,"",null,null,"",null,null,""]
[null,null,null,null,null,null,null,null,null,null,null,null,null,null,null,null,null,null,null,null,null,null,null,null,null,"",null,null,"",null,null,""]
[null,null,null,null,null,null,null,null,null,null,null,null,null,null,null,null,null,null,null,null,null,null,null,null,null,"",null,null,"",null,null,""]
[null,null,null,null,null,null,null,null,null,null,null,null,null,null,null,null,null,null,null,null,null,null,null,null,null,"",null,null,"",null,null,""]
[null,null,null,null,null,null,null,null,null,null,null,null,null,null,null,null,null,null,null,null,null,null,null,13,"N°",null,14,"N°",null,15,"N°"]
[null,null,null,null,null,null,null,null,null,null,null,null,null,null,null,null,null,null,null,null,null,null,null,null,"ROW",null,null,"ROW",null,null,"ROW"]
[null,null,null,null,null,null,null,null,null,null,null,null,null,null,null,null,null,null,null,null,null,null,null,"إختر_ الإجابة",{"$f":"IF(COUNTIF($C$19:$G$19,X57)>=1,\"\",ROW())","v":57},{"$f":"IF(ROW(X57)-ROW(X$57)+1>COUNT(Y$57:Y$67),\"\",INDEX(X:X,SMALL(Y$57:Y$67,1+ROW(X57)-ROW(X$57))))","v":"إختر_ الإجابة"},"إختر_ الإجابة",{"$f":"IF(COUNTIF($C$20:$G$20,AA57)>=1,\"\",ROW())","v":57},{"$f":"IF(ROW(AA57)-ROW(AA$57)+1>COUNT(AB$57:AB$67),\"\",INDEX(AA:AA,SMALL(AB$57:AB$67,1+ROW(AA57)-ROW(AA$57))))","v":"إختر_ الإجابة"},"إختر_ الإجابة",{"$f":"IF(COUNTIF($C$21:$G$21,AD57)>=1,\"\",ROW())","v":57},{"$f":"IF(ROW(AD57)-ROW(AD$57)+1>COUNT(AE$57:AE$67),\"\",INDEX(AD:AD,SMALL(AE$57:AE$67,1+ROW(AD57)-ROW(AD$57))))","v":"إختر_ الإجابة"}]
[null,null,null,null,null,null,null,null,null,null,null,null,null,null,null,null,null,null,null,null,null,null,null,"الاختيار الأول",{"$f":"IF(COUNTIF($C$19:$G$19,X58)>=1,\"\",ROW())","v":58},{"$f":"IF(ROW(X58)-ROW(X$57)+1>COUNT(Y$57:Y$67),\"\",INDEX(X:X,SMALL(Y$57:Y$67,1+ROW(X58)-ROW(X$57))))","v":"الاختيار الأول"},"الاختيار الأول",{"$f":"IF(COUNTIF($C$20:$G$20,AA58)>=1,\"\",ROW())","v":58},{"$f":"IF(ROW(AA58)-ROW(AA$57)+1>COUNT(AB$57:AB$67),\"\",INDEX(AA:AA,SMALL(AB$57:AB$67,1+ROW(AA58)-ROW(AA$57))))","v":"الاختيار الأول"},"الاختيار الأول",{"$f":"IF(COUNTIF($C$21:$G$21,AD58)>=1,\"\",ROW())","v":58},{"$f":"IF(ROW(AD58)-ROW(AD$57)+1>COUNT(AE$57:AE$67),\"\",INDEX(AD:AD,SMALL(AE$57:AE$67,1+ROW(AD58)-ROW(AD$57))))","v":"الاختيار الأول"}]
[null,null,null,null,null,null,null,null,null,null,null,null,null,null,null,null,null,null,null,null,null,null,null,"الاختيار الثاني",59,"الاختيار الثاني","الاختيار الثاني",59,"الاختيار الثاني","الاختيار الثاني",59,"الاختيار الثاني"]
[null,null,null,null,null,null,null,null,null,null,null,null,null,null,null,null,null,null,null,null,null,null,null,"الاختيار الثالث",60,"الاختيار الثالث","الاختيار الثالث",60,"الاختيار الثالث","الاختيار الثالث",60,"الاختيار الثالث"]
[null,null,null,null,null,null,null,null,null,null,null,null,null,null,null,null,null,null,null,null,null,null,null,"الاختيار الرابع",61,"الاختيار الرابع","الاختيار الرابع",61,"الاختيار الرابع","الاختيار الرابع",61,"الاختيار الرابع"]
[null,null,null,null,null,null,null,null,null,null,null,null,null,null,null,null,null,null,null,null,null,null,null,"الاختيار الخامس",62,"الاختيار الخامس","الاختيار الخامس",62,"الاختيار الخامس","الاختيار الخامس",62,"الاختيار الخامس"]
[null,null,null,null,null,null,null,null,null,null,null,null,null,null,null,null,null,null,null,null,null,null,null,"_",63,"_","_",63,"_","_",63,"_"]
[null,null,null,null,null,null,null,null,null,null,null,null,null,null,null,null,null,null,null,null,null,null,null,null,null,"",null,null,"",null,null,""]
[null,null,null,null,null,null,null,null,null,null,null,null,null,null,null,null,null,null,null,null,null,null,null,null,null,"",null,null,"",null,null,""]
[null,null,null,null,null,null,null,null,null,null,null,null,null,null,null,null,null,null,null,null,null,null,null,null,null,"",null,null,"",null,null,""]
[null,null,null,null,null,null,null,null,null,null,null,null,null,null,null,null,null,null,null,null,null,null,null,null,null,"",null,null,"",null,null,""]
[null,null,null,null,null,null,null,null,null,null,null,null,null,null,null,null,null,null,null,null,null,null,null,16,"N°",null,17,"N°",null,18,"N°"]
[null,null,null,null,null,null,null,null,null,null,null,null,null,null,null,null,null,null,null,null,null,null,null,null,"ROW",null,null,"ROW",null,null,"ROW"]
[null,null,null,null,null,null,null,null,null,null,null,null,null,null,null,null,null,null,null,null,null,null,null,"إختر_ الإجابة",{"$f":"IF(COUNTIF($C$22:$G$22,X70)>=1,\"\",ROW())","v":70},{"$f":"IF(ROW(X70)-ROW(X$70)+1>COUNT(Y$70:Y$80),\"\",INDEX(X:X,SMALL(Y$70:Y$80,1+ROW(X70)-ROW(X$70))))","v":"إختر_ الإجابة"},"إختر_ الإجابة",{"$f":"IF(COUNTIF($C$23:$G$23,AA70)>=1,\"\",ROW())","v":70},{"$f":"IF(ROW(AA70)-ROW(AA$70)+1>COUNT(AB$70:AB$80),\"\",INDEX(AA:AA,SMALL(AB$70:AB$80,1+ROW(AA70)-ROW(AA$70))))","v":"إختر_ الإجابة"},"إختر_ الإجابة",{"$f":"IF(COUNTIF($C$24:$G$24,AD70)>=1,\"\",ROW())","v":70},{"$f":"IF(ROW(AD70)-ROW(AD$70)+1>COUNT(AE$70:AE$80),\"\",INDEX(AD:AD,SMALL(AE$70:AE$80,1+ROW(AD70)-ROW(AD$70))))","v":"إختر_ الإجابة"}]
[null,null,null,null,null,null,null,null,null,null,null,null,null,null,null,null,null,null,null,null,null,null,null,"الاختيار الأول",{"$f":"IF(COUNTIF($C$22:$G$22,X71)>=1,\"\",ROW())","v":71},{"$f":"IF(ROW(X71)-ROW(X$70)+1>COUNT(Y$70:Y$80),\"\",INDEX(X:X,SMALL(Y$70:Y$80,1+ROW(X71)-ROW(X$70))))","v":"الاختيار الأول"},"الاختيار الأول",{"$f":"IF(COUNTIF($C$23:$G$23,AA71)>=1,\"\",ROW())","v":71},{"$f":"IF(ROW(AA71)-ROW(AA$70)+1>COUNT(AB$70:AB$80),\"\",INDEX(AA:AA,SMALL(AB$70:AB$80,1+ROW(AA71)-ROW(AA$70))))","v":"الاختيار الأول"},"الاختيار الأول",{"$f":"IF(COUNTIF($C$24:$G$24,AD71)>=1,\"\",ROW())","v":71},{"$f":"IF(ROW(AD71)-ROW(AD$70)+1>COUNT(AE$70:AE$80),\"\",INDEX(AD:AD,SMALL(AE$70:AE$80,1+ROW(AD71)-ROW(AD$70))))","v":"الاختيار الأول"}]
[null,null,null,null,null,null,null,null,null,null,null,null,null,null,null,null,null,null,null,null,null,null,null,"الاختيار الثاني",72,"الاختيار الثاني","الاختيار الثاني",72,"الاختيار الثاني","الاختيار الثاني",72,"الاختيار الثاني"]
[null,null,null,null,null,null,null,null,null,null,null,null,null,null,null,null,null,null,null,null,null,null,null,"الاختيار الثالث",73,"الاختيار الثالث","الاختيار الثالث",73,"الاختيار الثالث","الاختيار الثالث",73,"الاختيار الثالث"]
[null,null,null,null,null,null,null,null,null,null,null,null,null,null,null,null,null,null,null,null,null,null,null,"الاختيار الرابع",74,"الاختيار الرابع","الاختيار الرابع",74,"الاختيار الرابع","الاختيار الرابع",74,"الاختيار الرابع"]
[null,null,null,null,null,null,null,null,null,null,null,null,null,null,null,null,null,null,null,null,null,null,null,"الاختيار الخامس",75,"الاختيار الخامس","الاختيار الخامس",75,"الاختيار الخامس","الاختيار الخامس",75,"الاختيار الخامس"]
[null,null,null,null,null,null,null,null,null,null,null,null,null,null,null,null,null,null,null,null,null,null,null,"_",76,"_","_",76,"_","_",76,"_"]
[null,null,null,null,null,null,null,null,null,null,null,null,null,null,null,null,null,null,null,null,null,null,null,null,null,"",null,null,"",null,null,""]
[null,null,null,null,null,null,null,null,null,null,null,null,null,null,null,null,null,null,null,null,null,null,null,null,null,"",null,null,"",null,null,""]
[null,null,null,null,null,null,null,null,null,null,null,null,null,null,null,null,null,null,null,null,null,null,null,null,null,"",null,null,"",null,null,""]
[null,null,null,null,null,null,null,null,null,null,null,null,null,null,null,null,null,null,null,null,null,null,null,null,null,"",null,null,"",null,null,""]
[null,null,null,null,null,null,null,null,null,null,null,null,null,null,null,null,null,null,null,null,null,null,null,19,"N°",null,20,"N°"]
[null,null,null,null,null,null,null,null,null,null,null,null,null,null,null,null,null,null,null,null,null,null,null,null,"ROW",null,null,"ROW"]
[null,null,null,null,null,null,null,null,null,null,null,null,null,null,null,null,null,null,null,null,null,null,null,"إختر_ الإجابة",{"$f":"IF(COUNTIF($C$25:$G$25,X83)>=1,\"\",ROW())","v":83},{"$f":"IF(ROW(X83)-ROW(X$83)+1>COUNT(Y$83:Y$93),\"\",INDEX(X:X,SMALL(Y$82:Y$93,1+ROW(X83)-ROW(X$83))))","v":"إختر_ الإجابة"},"إختر_ الإجابة",{"$f":"IF(COUNTIF($C$26:$G$26,AA83)>=1,\"\",ROW())","v":83},{"$f":"IF(ROW(AA83)-ROW(AA$83)+1>COUNT(AB$83:AB$93),\"\",INDEX(AA:AA,SMALL(AB$83:AB$93,1+ROW(AA83)-ROW(AA$83))))","v":"إختر_ الإجابة"}]
[null,null,null,null,null,null,null,null,null,null,null,null,null,null,null,null,null,null,null,null,null,null,null,"الاختيار الأول",{"$f":"IF(COUNTIF($C$25:$G$25,X84)>=1,\"\",ROW())","v":84},{"$f":"IF(ROW(X84)-ROW(X$83)+1>COUNT(Y$83:Y$93),\"\",INDEX(X:X,SMALL(Y$82:Y$93,1+ROW(X84)-ROW(X$83))))","v":"الاختيار الأول"},"الاختيار الأول",{"$f":"IF(COUNTIF($C$26:$G$26,AA84)>=1,\"\",ROW())","v":84},{"$f":"IF(ROW(AA84)-ROW(AA$83)+1>COUNT(AB$83:AB$93),\"\",INDEX(AA:AA,SMALL(AB$83:AB$93,1+ROW(AA84)-ROW(AA$83))))","v":"الاختيار الأول"}]
[null,null,null,null,null,null,null,null,null,null,null,null,null,null,null,null,null,null,null,null,null,null,null,"الاختيار الثاني",85,"الاختيار الثاني","الاختيار الثاني",85,"الاختيار الثاني"]
[null,null,null,null,null,null,null,null,null,null,null,null,null,null,null,null,null,null,null,null,null,null,null,"الاختيار الثالث",86,"الاختيار الثالث","الاختيار الثالث",86,"الاختيار الثالث"]
[null,null,null,null,null,null,null,null,null,null,null,null,null,null,null,null,null,null,null,null,null,null,null,"الاختيار الرابع",87,"الاختيار الرابع","الاختيار الرابع",87,"الاختيار الرابع"]
[null,null,null,null,null,null,null,null,null,null,null,null,null,null,null,null,null,null,null,null,null,null,null,"الاختيار الخامس",88,"الاختيار الخامس","الاختيار الخامس",88,"الاختيار الخامس"]
[null,null,null,null,null,null,null,null,null,null,null,null,null,null,null,null,null,null,null,null,null,null,null,"_",89,"_","_",89,"_"]
[null,null,null,null,null,null,null,null,null,null,null,null,null,null,null,null,null,null,null,null,null,null,null,null,null,"",null,null,""]
[null,null,null,null,null,null,null,null,null,null,null,null,null,null,null,null,null,null,null,null,null,null,null,null,null,"",null,null,""]
[null,null,null,null,null,null,null,null,null,null,null,null,null,null,null,null,null,null,null,null,null,null,null,null,null,"",null,null,""]
[null,null,null,null,null,null,null,null,null,null,null,null,null,null,null,null,null,null,null,null,null,null,null,null,null,"",null,null,""]